{"text_format":"1","workbook":"xlsx","n_sheets":10,"sheets":["Front Sheet","Current & Potential","LookupsC&P","Support Form","Goal Planning","lookups","Options","Data Sheet (2)","Data Sheet","Charts"],"not_rendered":{"charts":9,"images":2,"macros":1,"external_links":0,"defined_names":2,"comments":0,"pivot_tables":0},"unopened":[],"bounds":{"document_bytes":16777216,"sheet_cells":100000,"rows_first":2000,"rows_last":500,"rows_between":2000,"halvings":0,"cell_chars":16384,"cell_head_chars":4096},"cells_cut":0,"cells_raw":0,"read":"whole","date_system":"1900"}

{"sheet":"Front Sheet","index":0,"n_rows":91,"n_cols":3,"rows_kept":91,"cut":false,"hidden":false,"merged":[[19,1,19,2],[90,0,91,3],[89,1,89,2],[2,1,2,3]]}
[]
[null,"                            Please do not add/amend or delete any content of this document."]
[null,"                            Please call Practitioner to discuss any changes."]
[null,"Initials:"]
[]
[null,"Eclipse no:"]
[]
[]
[]
[null,"Provider:"]
[]
[]
[null,"Direct Support Ratio","Hours of Support At That Ratio"]
[]
[]
[]
[]
[]
[]
[null,"Graphs Automatically Update After Completing \"Current & Potential\" Page"]
[]
[]
[]
[]
[]
[]
[]
[]
[]
[]
[]
[]
[]
[]
[]
[]
[]
[]
[]
[]
[]
[]
[]
[]
[]
[]
[]
[]
[]
[]
[]
[]
[]
[]
[]
[]
[]
[]
[]
[]
[]
[]
[]
[]
[]
[]
[]
[]
[]
[]
[]
[]
[]
[]
[]
[]
[]
[]
[]
[]
[]
[]
[]
[null,"DATE GPD COMPLETED:"]
[null,"DATE FIRST REVIEW COMPLETED: (3 mnths)"]
[null,"DATE SECOND REVIEW COMPLETED: (6 mnths)"]
[null,"DATE THIRD REVIEW COMPLETED: (9 mnths)"]
[null,"DATE ANNUAL REVIEW COMPLETED:"]
[]
[null,"Please do not add/amend or delete any content.  V1.3"]
["This form is intended for use by SBC and their partner's only and should not be distributed to any third parties.\nPlease Note this form is still under development. Please can any issues or suggestions be emailed to: LDGoalplanning@swindon.gov.uk"]

{"sheet":"Current & Potential","index":1,"n_rows":159,"n_cols":20,"rows_kept":159,"cut":false,"hidden":false,"merged":[[81,13,99,13],[100,13,118,13],[119,13,137,13],[138,13,156,13],[157,13,164,13],[3,0,3,8],[5,13,23,13],[24,13,42,13],[43,13,61,13],[62,13,80,13]]}
["A1-1","B1-1","C1-1","D1-1","E1-1","F1-1","G1-1","H1-1","I1-1","J1-1","K1-1","L1-1","M1-1","N1-1","O1-1","P1-1","Q1-1","R1-1","S1-1","T1-1"]
["A2-1","B2-1","C2-1","D2-1","E2-1","F2-1","G2-1","H2-1","I2-1","J2-1","K2-1","L2-1","M2-1","N2-1","O2-1","P2-1","Q2-1","R2-1","S2-1","T2-1"]
[{"$f":"A1=A2","v":false},{"$f":"B1=B2","v":false},false,false,false,false,false,false,false,false,false,false,false,false,false,false,false,false,false,false]
["Current & Potential"]
[]
[null,null,null,null,null,null,null,null,null,null,null,null,null,"<     Please Keep Scrolling     >",{"$f":"INDEX('LookupsC&P'!B:B,MATCH('Current & Potential'!A1,'LookupsC&P'!A:A,0))","v":"I need full support and someone to make all my food for me"}]
[null,null,null,null,null,null,null,null,null,null,null,null,null,null,{"$f":"INDEX('LookupsC&P'!E:E,MATCH('Current & Potential'!A2,'LookupsC&P'!D:D,0))","v":"I need full support and someone to make all my food for me"}]
[]
[]
[]
[]
[]
[]
[null,null,null,null,null,null,null,null,null,null,null,null,null,null,{"$f":"INDEX('LookupsC&P'!B:B,MATCH('Current & Potential'!B1,'LookupsC&P'!A:A,0))","v":"I need full support with all my eating and drinking, which may include pureeing my food or thickening fluids"}]
[null,null,null,null,null,null,null,null,null,null,null,null,null,null,{"$f":"INDEX('LookupsC&P'!E:E,MATCH('Current & Potential'!B2,'LookupsC&P'!D:D,0))","v":"I need full support with all my eating and drinking, which may include pureeing my food or thickening fluids"}]
[]
[]
[]
[]
[]
[]
[null,null,null,null,null,null,null,null,null,null,null,null,null,null,{"$f":"INDEX('LookupsC&P'!B:B,MATCH('Current & Potential'!C1,'LookupsC&P'!A:A,0))","v":"I need full support and someone to plan my nutrition for me"}]
[null,null,null,null,null,null,null,null,null,null,null,null,null,null,{"$f":"INDEX('LookupsC&P'!E:E,MATCH('Current & Potential'!C2,'LookupsC&P'!D:D,0))","v":"I need full support and someone to plan my nutrition for me"}]
[]
[null,null,null,null,null,null,null,null,null,null,null,null,null,"<     Please Keep Scrolling     >"]
[]
[]
[]
[]
[null,null,null,null,null,null,null,null,null,null,null,null,null,null,{"$f":"INDEX('LookupsC&P'!B:B,MATCH('Current & Potential'!D1,'LookupsC&P'!A:A,0))","v":"I need full support in cleaning myself and maintain personal hygiene"}]
[null,null,null,null,null,null,null,null,null,null,null,null,null,null,{"$f":"INDEX('LookupsC&P'!E:E,MATCH('Current & Potential'!D2,'LookupsC&P'!D:D,0))","v":"I need full support in cleaning myself and maintain personal hygiene"}]
[]
[]
[]
[]
[]
[]
[]
[null,null,null,null,null,null,null,null,null,null,null,null,null,null,{"$f":"INDEX('LookupsC&P'!B:B,MATCH('Current & Potential'!E1,'LookupsC&P'!A:A,0))","v":"I need full support with all my continence needs, including continence aids "}]
[null,null,null,null,null,null,null,null,null,null,null,null,null,null,{"$f":"INDEX('LookupsC&P'!E:E,MATCH('Current & Potential'!E2,'LookupsC&P'!D:D,0))","v":"I need full support with all my continence needs, including continence aids "}]
[]
[]
[]
[null,null,null,null,null,null,null,null,null,null,null,null,null,"<     Please Keep Scrolling     >"]
[]
[]
[null,null,null,null,null,null,null,null,null,null,null,null,null,null,{"$f":"INDEX('LookupsC&P'!B:B,MATCH('Current & Potential'!F1,'LookupsC&P'!A:A,0))","v":"I need full support to get dressed and choose appropriate clothes "}]
[null,null,null,null,null,null,null,null,null,null,null,null,null,null,{"$f":"INDEX('LookupsC&P'!E:E,MATCH('Current & Potential'!F2,'LookupsC&P'!D:D,0))","v":"I need full support to get dressed and choose appropriate clothes "}]
[]
[]
[]
[]
[]
[]
[null,null,null,null,null,null,null,null,null,null,null,null,null,null,{"$f":"INDEX('LookupsC&P'!B:B,MATCH('Current & Potential'!G1,'LookupsC&P'!A:A,0))","v":"I need full support to get around my home."}]
[null,null,null,null,null,null,null,null,null,null,null,null,null,null,{"$f":"INDEX('LookupsC&P'!E:E,MATCH('Current & Potential'!G2,'LookupsC&P'!D:D,0))","v":"I need full support to get around my home."}]
[]
[]
[]
[]
[]
[null,null,null,null,null,null,null,null,null,null,null,null,null,null,{"$f":"INDEX('LookupsC&P'!B:B,MATCH('Current & Potential'!H1,'LookupsC&P'!A:A,0))","v":"I need full support to keep my home clean and safe"}]
[null,null,null,null,null,null,null,null,null,null,null,null,null,"<     Please Keep Scrolling     >",{"$f":"INDEX('LookupsC&P'!E:E,MATCH('Current & Potential'!H2,'LookupsC&P'!D:D,0))","v":"I need full support to keep my home clean and safe"}]
[]
[]
[]
[]
[]
[]
[null,null,null,null,null,null,null,null,null,null,null,null,null,null,{"$f":"INDEX('LookupsC&P'!B:B,MATCH('Current & Potential'!I1,'LookupsC&P'!A:A,0))","v":"I need full support to see friends and family and different types of relationship"}]
[null,null,null,null,null,null,null,null,null,null,null,null,null,null,{"$f":"INDEX('LookupsC&P'!E:E,MATCH('Current & Potential'!I2,'LookupsC&P'!D:D,0))","v":"I need full support to see friends and family and different types of relationship"}]
[]
[]
[]
[]
[]
[]
[]
[null,null,null,null,null,null,null,null,null,null,null,null,null,null,{"$f":"INDEX('LookupsC&P'!B:B,MATCH('Current & Potential'!J1,'LookupsC&P'!A:A,0))","v":"I am not ready to work"}]
[null,null,null,null,null,null,null,null,null,null,null,null,null,null,{"$f":"INDEX('LookupsC&P'!E:E,MATCH('Current & Potential'!J2,'LookupsC&P'!D:D,0))","v":"I am not ready to work"}]
[]
[null,null,null,null,null,null,null,null,null,null,null,null,null,"<     Please Keep Scrolling     >"]
[]
[]
[]
[null,null,null,null,null,null,null,null,null,null,null,null,null,null,{"$f":"INDEX('LookupsC&P'!B:B,MATCH('Current & Potential'!K1,'LookupsC&P'!A:A,0))","v":"I need full support to spend my time during the day/ evening doing activities that I enjoy"}]
[null,null,null,null,null,null,null,null,null,null,null,null,null,null,{"$f":"INDEX('LookupsC&P'!E:E,MATCH('Current & Potential'!K2,'LookupsC&P'!D:D,0))","v":"I need full support to spend my time during the day/ evening doing activities that I enjoy"}]
[]
[]
[]
[]
[]
[]
[null,null,null,null,null,null,null,null,null,null,null,null,null,null,{"$f":"INDEX('LookupsC&P'!B:B,MATCH('Current & Potential'!L1,'LookupsC&P'!A:A,0))","v":"I need full support to be able to get out into the community and to keep safe when out and about"}]
[null,null,null,null,null,null,null,null,null,null,null,null,null,null,{"$f":"INDEX('LookupsC&P'!E:E,MATCH('Current & Potential'!L2,'LookupsC&P'!D:D,0))","v":"I need full support to be able to get out into the community and to keep safe when out and about"}]
[]
[]
[]
[]
[]
[null,null,null,null,null,null,null,null,null,null,null,null,null,"<     Please Keep Scrolling     >"]
[null,null,null,null,null,null,null,null,null,null,null,null,null,null,{"$f":"INDEX('LookupsC&P'!B:B,MATCH('Current & Potential'!M1,'LookupsC&P'!A:A,0))","v":"I need full support when on public transport or in a mobility vehicle "}]
[null,null,null,null,null,null,null,null,null,null,null,null,null,null,{"$f":"INDEX('LookupsC&P'!E:E,MATCH('Current & Potential'!M2,'LookupsC&P'!D:D,0))","v":"I need full support when on public transport or in a mobility vehicle "}]
[]
[]
[]
[]
[]
[]
[null,null,null,null,null,null,null,null,null,null,null,null,null,null,{"$f":"INDEX('LookupsC&P'!B:B,MATCH('Current & Potential'!N1,'LookupsC&P'!A:A,0))","v":"I need full support to keep myself safe"}]
[null,null,null,null,null,null,null,null,null,null,null,null,null,null,{"$f":"INDEX('LookupsC&P'!E:E,MATCH('Current & Potential'!N2,'LookupsC&P'!D:D,0))","v":"I need full support to keep myself safe"}]
[]
[]
[]
[]
[]
[]
[null,null,null,null,null,null,null,null,null,null,null,null,null,null,{"$f":"INDEX('LookupsC&P'!B:B,MATCH('Current & Potential'!O1,'LookupsC&P'!A:A,0))","v":"I need full support and someone to manage my money (e.g. an Appointee) and to help me claim benefits and attend appointments with the DWP"}]
[null,null,null,null,null,null,null,null,null,null,null,null,null,null,{"$f":"INDEX('LookupsC&P'!E:E,MATCH('Current & Potential'!O2,'LookupsC&P'!D:D,0))","v":"I need full support and someone to manage my money (e.g. an Appointee) and to help me claim benefits and attend appointments with the DWP"}]
[null,null,null,null,null,null,null,null,null,null,null,null,null,"<     Please Keep Scrolling     >"]
[]
[]
[]
[]
[]
[null,null,null,null,null,null,null,null,null,null,null,null,null,null,{"$f":"INDEX('LookupsC&P'!B:B,MATCH('Current & Potential'!P1,'LookupsC&P'!A:A,0))","v":"I need full support and someone to manage my correspondences"}]
[null,null,null,null,null,null,null,null,null,null,null,null,null,null,{"$f":"INDEX('LookupsC&P'!E:E,MATCH('Current & Potential'!P2,'LookupsC&P'!D:D,0))","v":"I need full support and someone to manage my correspondences"}]
[]
[]
[]
[]
[]
[]
[null,null,null,null,null,null,null,null,null,null,null,null,null,null,{"$f":"INDEX('LookupsC&P'!B:B,MATCH('Current & Potential'!Q1,'LookupsC&P'!A:A,0))","v":"I need full support to manage my health needs, including medication and accessing health professionals when needed"}]
[null,null,null,null,null,null,null,null,null,null,null,null,null,null,{"$f":"INDEX('LookupsC&P'!E:E,MATCH('Current & Potential'!Q2,'LookupsC&P'!D:D,0))","v":"I need full support to manage my health needs, including medication and accessing health professionals when needed"}]
[]
[]
[]
[null,null,null,null,null,null,null,null,null,null,null,null,null,"<     Please Keep Scrolling     >"]
[]
[]
[null,null,null,null,null,null,null,null,null,null,null,null,null,null,{"$f":"INDEX('LookupsC&P'!B:B,MATCH('Current & Potential'!R1,'LookupsC&P'!A:A,0))","v":"I need full support to manage my psychological wellbeing"}]
[null,null,null,null,null,null,null,null,null,null,null,null,null,null,{"$f":"INDEX('LookupsC&P'!E:E,MATCH('Current & Potential'!R2,'LookupsC&P'!D:D,0))","v":"I need full support to manage my psychological wellbeing"}]
[]
[]
[]
[]
[]
[]
[null,null,null,null,null,null,null,null,null,null,null,null,null,null,{"$f":"INDEX('LookupsC&P'!B:B,MATCH('Current & Potential'!S1,'LookupsC&P'!A:A,0))","v":"Waking Nights"}]
[null,null,null,null,null,null,null,null,null,null,null,null,null,null,{"$f":"INDEX('LookupsC&P'!E:E,MATCH('Current & Potential'!S2,'LookupsC&P'!D:D,0))","v":"Waking Nights"}]
[]
[]
[]
[]
[]
[]
[null,null,null,null,null,null,null,null,null,null,null,null,null,"¦     End     ¦",{"$f":"INDEX('LookupsC&P'!B:B,MATCH('Current & Potential'!T1,'LookupsC&P'!A:A,0))","v":"Residential"}]
[null,null,null,null,null,null,null,null,null,null,null,null,null,null,{"$f":"INDEX('LookupsC&P'!E:E,MATCH('Current & Potential'!T2,'LookupsC&P'!D:D,0))","v":"Residential"}]

{"sheet":"LookupsC&P","index":2,"n_rows":83,"n_cols":6,"rows_kept":83,"cut":false,"hidden":true,"merged":[]}
["A1-1","I need full support and someone to make all my food for me",1,"A2-1","I need full support and someone to make all my food for me",1]
["A1-2","I can make drinks or snacks myself but need constant support when making meals",2,"A2-2","I can make drinks or snacks myself but need constant support when making meals",2]
["A1-3","I can cook main meals with prompts and supervision or visual guidance ",3,"A2-3","I can cook main meals with prompts and supervision or visual guidance ",3]
["A1-4","I can cook all meals independently ",4,"A2-4","I can cook all meals independently ",4]
["B1-1","I need full support with all my eating and drinking, which may include pureeing my food or thickening fluids",1,"B2-1","I need full support with all my eating and drinking, which may include pureeing my food or thickening fluids",1]
["B1-2","I need constant supervision to make sure I am safe whilst eating and drinking",2,"B2-2","I need constant supervision to make sure I am safe whilst eating and drinking",2]
["B1-3","I need occasional prompts and checks whilst eating and drinking or on a shared basis",3,"B2-3","I need occasional prompts and checks whilst eating and drinking or on a shared basis",3]
["B1-4","I can eat and drink all food safely on my own",4,"B2-4","I can eat and drink all food safely on my own",4]
["C1-1","I need full support and someone to plan my nutrition for me",1,"C2-1","I need full support and someone to plan my nutrition for me",1]
["C1-2","I need support with menu planning & shopping but I can choose between options for different meals",2,"C2-2","I need support with menu planning & shopping but I can choose between options for different meals",2]
["C1-3","I can plan my meals & do my shopping but need prompts to keep them healthy",3,"C2-3","I can plan my meals & do my shopping but need prompts to keep them healthy",3]
["C1-4","I can plan my meals so they are healthy and lead to a balanced diet",4,"C2-4","I can plan my meals so they are healthy and lead to a balanced diet",4]
["D1-1","I need full support in cleaning myself and maintain personal hygiene",1,"D2-1","I need full support in cleaning myself and maintain personal hygiene",1]
["D1-2","I need some physical support to wash and shower",2,"D2-2","I need some physical support to wash and shower",2]
["D1-3","I can wash and shower without physical support but need support/ supervision to make sure I am safe",3,"D2-3","I can wash and shower without physical support but need support/ supervision to make sure I am safe",3]
["D1-4","I am able to wash and shower and maintain my personal hygiene independently, but need prompts so I don’t forget",4,"D2-4","I am able to wash and shower and maintain my personal hygiene independently, but need prompts so I don’t forget",4]
["D1-5","I can maintain my personal hygiene independently ",5,"D2-5","I can maintain my personal hygiene independently ",5]
["E1-1","I need full support with all my continence needs, including continence aids ",1,"E2-1","I need full support with all my continence needs, including continence aids ",1]
["E1-2","I know when I need to go to the toilet but I need supervision to get to the toilet and use it",2,"E2-2","I know when I need to go to the toilet but I need supervision to get to the toilet and use it",2]
["E1-3","I need prompts to go to the toilet but can do it on my own ",3,"E2-3","I need prompts to go to the toilet but can do it on my own ",3]
["E1-4","I can manage my toileting needs independently ",4,"E2-4","I can manage my toileting needs independently ",4]
["F1-1","I need full support to get dressed and choose appropriate clothes ",1,"F2-1","I need full support to get dressed and choose appropriate clothes ",1]
["F1-2","I need support to choose appropriate clothing and may need some assistance to put the clothing on",2,"F2-2","I need support to choose appropriate clothing and may need some assistance to put the clothing on",2]
["F1-3","I can choose my own appropriate clothing and get dressed with prompting",3,"F2-3","I can choose my own appropriate clothing and get dressed with prompting",3]
["F1-4","I can independently get dressed and choose appropriate clothing",4,"F2-4","I can independently get dressed and choose appropriate clothing",4]
["G1-1","I need full support to get around my home.",1,"G2-1","I need full support to get around my home.",1]
["G1-2","I need some support to ensure I am safe whilst moving around my home",2,"G2-2","I need some support to ensure I am safe whilst moving around my home",2]
["G1-3","I am able to get around but need supervision to ensure my safety ",3,"G2-3","I am able to get around but need supervision to ensure my safety ",3]
["G1-4","I can independently move/ get around without support",4,"G2-4","I can independently move/ get around without support",4]
["H1-1","I need full support to keep my home clean and safe",1,"H2-1","I need full support to keep my home clean and safe",1]
["H1-2","I can do certain tasks but need  support to keep my home clean and safe",2,"H2-2","I can do certain tasks but need  support to keep my home clean and safe",2]
["H1-3","I can keep my home clean and safe when prompted",3,"H2-3","I can keep my home clean and safe when prompted",3]
["H1-4","I can independently keep my home clean and safe ",4,"H2-4","I can independently keep my home clean and safe ",4]
["I1-1","I need full support to see friends and family and different types of relationship",1,"I2-1","I need full support to see friends and family and different types of relationship",1]
["I1-2","I need prompts to maintain my current relationships and support to create new relationships",2,"I2-2","I need prompts to maintain my current relationships and support to create new relationships",2]
["I1-3","I have a few good relationships and see people when I want to but may need guidance on how to create new ones",3,"I2-3","I have a few good relationships and see people when I want to but may need guidance on how to create new ones",3]
["I1-4","I can maintain and create new relationships independently and have good social support around me",4,"I2-4","I can maintain and create new relationships independently and have good social support around me",4]
["J1-1","I am not ready to work",1,"J2-1","I am not ready to work",1]
["J1-2","I am ready to access supported employment",2,"J2-2","I am ready to access supported employment",2]
["J1-3","I need support to find work",3,"J2-3","I need support to find work",3]
["J1-4","I can work but need support to keep it",4,"J2-4","I can work but need support to keep it",4]
["J1-5","I can consistently and independently maintain my work role ",5,"J2-5","I can consistently and independently maintain my work role ",5]
["K1-1","I need full support to spend my time during the day/ evening doing activities that I enjoy",1,"K2-1","I need full support to spend my time during the day/ evening doing activities that I enjoy",1]
["K1-2","I need some support to plan activities & keep on task whilst there",2,"K2-2","I need some support to plan activities & keep on task whilst there",2]
["K1-3","I can choose my own activities but need support to access them",3,"K2-3","I can choose my own activities but need support to access them",3]
["K1-4","I can independently and safely fulfil my days ",4,"K2-4","I can independently and safely fulfil my days ",4]
["L1-1","I need full support to be able to get out into the community and to keep safe when out and about",1,"L2-1","I need full support to be able to get out into the community and to keep safe when out and about",1]
["L1-2","I can get out into the community with shared support to prompt me to stay safe ",2,"L2-2","I can get out into the community with shared support to prompt me to stay safe ",2]
["L1-3","I can access the community independently to places I am familiar with  but need support for less familiar places to make sure I stay safe",3,"L2-3","I can access the community independently to places I am familiar with  but need support for less familiar places to make sure I stay safe",3]
["L1-4","I can access the community independently and safely ",4,"L2-4","I can access the community independently and safely ",4]
["M1-1","I need full support when on public transport or in a mobility vehicle ",1,"M2-1","I need full support when on public transport or in a mobility vehicle ",1]
["M1-2","I am able to use public transport with support ",2,"M2-2","I am able to use public transport with support ",2]
["M1-3","I am able to use public transport independently but may need initial support to access places that are unfamiliar ",3,"M2-3","I am able to use public transport independently but may need initial support to access places that are unfamiliar ",3]
["M1-4","I can independently and safely travel between locations ",4,"M2-4","I can independently and safely travel between locations ",4]
["N1-1","I need full support to keep myself safe",1,"N2-1","I need full support to keep myself safe",1]
["N1-2","I am aware of some risk around me but need support to manage these consistently",2,"N2-2","I am aware of some risk around me but need support to manage these consistently",2]
["N1-3","I am aware of risks around me but need occasional prompts/reminders to make sure I stay safe ",3,"N2-3","I am aware of risks around me but need occasional prompts/reminders to make sure I stay safe ",3]
["N1-4","I am aware of risks around me and can manage these independently ",4,"N2-4","I am aware of risks around me and can manage these independently ",4]
["O1-1","I need full support and someone to manage my money (e.g. an Appointee) and to help me claim benefits and attend appointments with the DWP",1,"O2-1","I need full support and someone to manage my money (e.g. an Appointee) and to help me claim benefits and attend appointments with the DWP",1]
["O1-2","I am able to manage my money day to day but need support to budget/manage bank accounts safely",2,"O2-2","I am able to manage my money day to day but need support to budget/manage bank accounts safely",2]
["O1-3","I can manage a weekly budget and pay my bills but need support for any less common money matters including benefits applications etc.",3,"O2-3","I can manage a weekly budget and pay my bills but need support for any less common money matters including benefits applications etc.",3]
["O1-4","I can manage all aspects of my finances",4,"O2-4","I can manage all aspects of my finances",4]
["P1-1","I need full support and someone to manage my correspondences",1,"P2-1","I need full support and someone to manage my correspondences",1]
["P1-2","I have an awareness of letters and correspondences but need support to read and respond to them",2,"P2-2","I have an awareness of letters and correspondences but need support to read and respond to them",2]
["P1-3","I am able to read and respond to most letters but need support for any less common matters",3,"P2-3","I am able to read and respond to most letters but need support for any less common matters",3]
["P1-4","I can manage all aspects of my letters and correspondences",4,"P2-4","I can manage all aspects of my letters and correspondences",4]
["Q1-1","I need full support to manage my health needs, including medication and accessing health professionals when needed",1,"Q2-1","I need full support to manage my health needs, including medication and accessing health professionals when needed",1]
["Q1-2","I am able to take my medication with prompts and can recognise when I am feeling unwell but need support to make and attend medical appointments",2,"Q2-2","I am able to take my medication with prompts and can recognise when I am feeling unwell but need support to make and attend medical appointments",2]
["Q1-3","I am able to manage my daily health needs independently.",3,"Q2-3","I am able to manage my daily health needs independently.",3]
["Q1-4",null,4,"Q2-4",null,4]
["R1-1","I need full support to manage my psychological wellbeing",1,"R2-1","I need full support to manage my psychological wellbeing",1]
["R1-2","I am able to recognise when my psychological wellbeing is deteriorating but need support to manage it",2,"R2-2","I am able to recognise when my psychological wellbeing is deteriorating but need support to manage it",2]
["R1-3","I am able to manage my psychological wellbeing on an everyday basis but need support intermittently",3,"R2-3","I am able to manage my psychological wellbeing on an everyday basis but need support intermittently",3]
["R1-4","I am able to fully independently manage my psychological wellbeing and know who to contact if needed",4,"R2-4","I am able to fully independently manage my psychological wellbeing and know who to contact if needed",4]
["S1-1","Waking Nights",1,"S2-1","Waking Nights",1]
["S1-2","Responsive Nights",2,"S2-2","Responsive Nights",2]
["S1-3","Sleeping Night",3,"S2-3","Sleeping Night",3]
["S1-4","No Night Support",4,"S2-4","No Night Support",4]
["T1-1","Residential",1,"T2-1","Residential",1]
["T1-2","Supported Living",2,"T2-2","Supported Living",2]
["T1-3","Shared Lived",3,"T2-3","Shared Lived",3]
["T1-4","Supported Housing",4,"T2-4","Supported Housing",4]
["T1-5","General Needs Housing",5,"T2-5","General Needs Housing",5]

{"sheet":"Support Form","index":3,"n_rows":28,"n_cols":13,"rows_kept":28,"cut":false,"hidden":true,"merged":[[24,1,25,1],[8,1,10,1],[11,1,13,1],[14,1,15,1],[17,1,18,1],[19,1,21,1],[22,1,23,1]]}
[]
[]
[null,"Full Name:",null,"Accommodation Type:"]
[null,"Date of Birth:",null,"SWIFT ID:"]
[null,"NHS ID:"]
[]
[null,"Themes:","Activity Area","Number of Commissioned X:1 Hours per Week","Support Type ","Number of Commissioned Shared Hours per Week","Shared Support Ratio","Number of Commissioned Background Hours per Week","Background Support Ratio ","Informal Hours","Current Capability","Potential Capability","Goals"]
[null,null,null,"Please type in the number of hours you provide per week for this activity (e.g. 2.5 is two and a half hours, 0.25 is 15 minutes).","If you have entered a number in the left column, please select from the drop down if you deliver hours for this (e.g. 1:1). \n","If applicable, please type in the number of hours your provide per week that are shared.","If you have entered a number in the left column, please select from the drop down if you deliver hours for this (e.g. 1:2). \n","If applicable, please type in the number of hours your provide per week that are background.","If you have selected 'Support Hours- Background' from support type columns, this will turn white. Please then select the number of people sharing the background support.","Please details how many informal hours are being provided for this area. If no informal hours are provided for this, please leave blank.","What are my current capabilities in this area? Based on the person's current strengths, skills and abilities.","What are my potential capabilities in this area?  Based on previous progress and the potential you have witnessed. This could be the same as, more than or less than the what is currently in place.","Do I have an existing goal in this area, or could have a future goal? Y/N"]
[null,"1)    Can I cook, clean and safely use the kitchen to make something to eat?","Cooking",null,null,null,null,null,null,null,{"$f":"'Current & Potential'!O6","v":"I need full support and someone to make all my food for me"},{"$f":"'Current & Potential'!O7","v":"I need full support and someone to make all my food for me"}]
[null,null,"Eating and Drinking",null,null,null,null,null,null,null,{"$f":"'Current & Potential'!O14","v":"I need full support with all my eating and drinking, which may include pureeing my food or thickening fluids"},{"$f":"'Current & Potential'!O15","v":"I need full support with all my eating and drinking, which may include pureeing my food or thickening fluids"}]
[null,null,"Meal Planning",null,null,null,null,null,null,null,{"$f":"'Current & Potential'!O22","v":"I need full support and someone to plan my nutrition for me"},{"$f":"'Current & Potential'!O23","v":"I need full support and someone to plan my nutrition for me"}]
[null,"2)    Am I supported to look after myself whilst promoting my dignity and independence?","Washing and Keeping Clean",null,null,null,null,null,null,null,{"$f":"'Current & Potential'!O30","v":"I need full support in cleaning myself and maintain personal hygiene"},{"$f":"'Current & Potential'!O31","v":"I need full support in cleaning myself and maintain personal hygiene"}]
[null,null,"Toilet Needs",null,null,null,null,null,null,null,{"$f":"'Current & Potential'!O39","v":"I need full support with all my continence needs, including continence aids "},{"$f":"'Current & Potential'!O40","v":"I need full support with all my continence needs, including continence aids "}]
[null,null,"Dressing",null,null,null,null,null,null,null,{"$f":"'Current & Potential'!O47","v":"I need full support to get dressed and choose appropriate clothes "},{"$f":"'Current & Potential'!O48","v":"I need full support to get dressed and choose appropriate clothes "}]
[null,"3)    Am I able to keep a clean/ safe/ warm home?","Getting Around My Home",null,null,null,null,null,null,null,{"$f":"'Current & Potential'!O55","v":"I need full support to get around my home."},{"$f":"'Current & Potential'!O56","v":"I need full support to get around my home."}]
[null,null,"Safe and Clean Home",null,null,null,null,null,null,null,{"$f":"'Current & Potential'!O62","v":"I need full support to keep my home clean and safe"},{"$f":"'Current & Potential'!O63","v":"I need full support to keep my home clean and safe"}]
[null,"4)    Do I have regular contact with friends, family and/ or supported to meet new people/ develop relationships?","Personal Relationships",null,null,null,null,null,null,null,{"$f":"'Current & Potential'!O70","v":"I need full support to see friends and family and different types of relationship"},{"$f":"'Current & Potential'!O71","v":"I need full support to see friends and family and different types of relationship"}]
[null,"5)    Have I got a balance of meaningful things to do and choice and control over my day/ week?","Day Activities",null,null,null,null,null,null,null,{"$f":"'Current & Potential'!O86","v":"I need full support to spend my time during the day/ evening doing activities that I enjoy"},{"$f":"'Current & Potential'!O87","v":"I need full support to spend my time during the day/ evening doing activities that I enjoy"}]
[null,null,"Work/ Volunteering",null,null,null,null,null,null,null,{"$f":"'Current & Potential'!O79","v":"I am not ready to work"},{"$f":"'Current & Potential'!O80","v":"I am not ready to work"}]
[null,"6)    Am I able to use public transport and get out in into the community to do the things I need and want to do?","Getting into the Community",null,null,null,null,null,null,null,{"$f":"'Current & Potential'!O94","v":"I need full support to be able to get out into the community and to keep safe when out and about"},{"$f":"'Current & Potential'!O95","v":"I need full support to be able to get out into the community and to keep safe when out and about"}]
[null,null,"Transport",null,null,null,null,null,null,null,{"$f":"'Current & Potential'!O102","v":"I need full support when on public transport or in a mobility vehicle "},{"$f":"'Current & Potential'!O103","v":"I need full support when on public transport or in a mobility vehicle "}]
[null,null,"Personal Safety",null,null,null,null,null,null,null,{"$f":"'Current & Potential'!O110","v":"I need full support to keep myself safe"},{"$f":"'Current & Potential'!O111","v":"I need full support to keep myself safe"}]
[null,"7)   Am I able to manage my own finances / keep on top of bills & letters?","Managing Money",null,null,null,null,null,null,null,{"$f":"'Current & Potential'!O118","v":"I need full support and someone to manage my money (e.g. an Appointee) and to help me claim benefits and attend appointments with the DWP"},{"$f":"'Current & Potential'!O119","v":"I need full support and someone to manage my money (e.g. an Appointee) and to help me claim benefits and attend appointments with the DWP"}]
[null,null,"Managing Correspondences",null,null,null,null,null,null,null,{"$f":"'Current & Potential'!O126","v":"I need full support and someone to manage my correspondences"},{"$f":"'Current & Potential'!O127","v":"I need full support and someone to manage my correspondences"}]
[null,"8)    Are my health and wellbeing needs being met and is support provided in the least restrictive way where appropriate?","Physical Wellbeing",null,null,null,null,null,null,null,{"$f":"'Current & Potential'!O134","v":"I need full support to manage my health needs, including medication and accessing health professionals when needed"},{"$f":"'Current & Potential'!O135","v":"I need full support to manage my health needs, including medication and accessing health professionals when needed"}]
[null,null,"Psychological Wellbeing",null,null,null,null,null,null,null,{"$f":"'Current & Potential'!O142","v":"I need full support to manage my psychological wellbeing"},{"$f":"'Current & Potential'!O143","v":"I need full support to manage my psychological wellbeing"}]
[null,"9)    Night Support",null,null,null,null,null,null,null,null,{"$f":"'Current & Potential'!O150","v":"Waking Nights"},{"$f":"'Current & Potential'!O151","v":"Waking Nights"}]
[null,"10)   Support Setting",null,null,null,null,null,null,null,null,{"$f":"'Current & Potential'!O158","v":"Residential"},{"$f":"'Current & Potential'!O159","v":"Residential"}]

{"sheet":"Goal Planning","index":4,"n_rows":24,"n_cols":42,"rows_kept":24,"cut":false,"hidden":false,"merged":[[1,40,3,40],[1,41,3,41],[0,37,0,40],[0,2,0,12],[0,14,0,24],[0,26,0,36],[1,39,3,39],[1,35,3,35],[1,2,2,33],[1,36,3,36],[1,37,3,37],[1,38,3,38]]}
[null,null,"<                         Please keep scrolling                         >",null,null,null,null,null,null,null,null,null,null,null,"<                         Please keep scrolling                         >",null,null,null,null,null,null,null,null,null,null,null,"<                         Please keep scrolling                         >",null,null,null,null,null,null,null,null,null,null,"<                         Please keep scrolling                         >",null,null,null,"¦          End          ¦"]
[null,null,"Please use this area to break down the steps to achieving their potential",null,null,null,null,null,null,null,null,null,null,null,null,null,null,null,null,null,null,null,null,null,null,null,null,null,null,null,null,null,null,null,null,"Review\n\nPlease choose which step you plan to have reached by 3 months","Review\n\nPlease choose which step you plan to have reached by 6 months","Review\n\nPlease choose which step you plan to have reached by 9 months","Review\n\nPlease choose which step you plan to have reached by 12 months","Weekly Support Hours Outcome\n\nIf you expect completing a step to reduce the weekly hours, please choose which step.","Commentary\n\nPlease enter any notes you wish to mention here.","Blockers\n\nPlease record here any thing outside of your control preventing or slowing progress"]
[]
[null,null,null,"Max Potential GOAL","More exact detail of Current status if required.","Step 1","Completed","Date Completed","Step 2","Completed","Date Completed","Step 3","Completed","Dare Completed","Step 4","Completed","Date Completed","Step 5","Completed","Date Completed","Step 6","Completed","Date Completed","Step 7","Completed","Date  Completed","Step 8","Completed","Date Completed","Step 9","Completed","Date Completed","Step 10","Completed","Date Completed"]
[null,null,"Cooking",{"$f":"'Support Form'!L9","v":"I need full support and someone to make all my food for me"}]
[null,null,"Eating and Drinking",{"$f":"'Support Form'!L10","v":"I need full support with all my eating and drinking, which may include pureeing my food or thickening fluids"}]
[null,null,"Meal Planning",{"$f":"'Support Form'!L11","v":"I need full support and someone to plan my nutrition for me"}]
[null,null,"Washing and Keeping Clean",{"$f":"'Support Form'!L12","v":"I need full support in cleaning myself and maintain personal hygiene"}]
[null,null,"Toilet Needs",{"$f":"'Support Form'!L13","v":"I need full support with all my continence needs, including continence aids "}]
[null,null,"Dressing",{"$f":"'Support Form'!L14","v":"I need full support to get dressed and choose appropriate clothes "}]
[null,null,"Getting Around My Home",{"$f":"'Support Form'!L15","v":"I need full support to get around my home."}]
[null,null,"Safe and Clean Home",{"$f":"'Support Form'!L16","v":"I need full support to keep my home clean and safe"}]
[null,null,"Personal Relationships",{"$f":"'Support Form'!L17","v":"I need full support to see friends and family and different types of relationship"}]
[null,null,"Day Activities",{"$f":"'Support Form'!L18","v":"I need full support to spend my time during the day/ evening doing activities that I enjoy"}]
[null,null,"Work/ Volunteering",{"$f":"'Support Form'!L19","v":"I am not ready to work"}]
[null,null,"Getting into the Community",{"$f":"'Support Form'!L20","v":"I need full support to be able to get out into the community and to keep safe when out and about"}]
[null,null,"Transport",{"$f":"'Support Form'!L21","v":"I need full support when on public transport or in a mobility vehicle "}]
[null,null,"Personal Safety",{"$f":"'Support Form'!L22","v":"I need full support to keep myself safe"}]
[null,null,"Managing Money",{"$f":"'Support Form'!L23","v":"I need full support and someone to manage my money (e.g. an Appointee) and to help me claim benefits and attend appointments with the DWP"}]
[null,null,"Managing Correspondences",{"$f":"'Support Form'!L24","v":"I need full support and someone to manage my correspondences"}]
[null,null,"Physical Wellbeing",{"$f":"'Support Form'!L25","v":"I need full support to manage my health needs, including medication and accessing health professionals when needed"}]
[null,null,"Psychological Wellbeing",{"$f":"'Support Form'!L26","v":"I need full support to manage my psychological wellbeing"}]
[null,null,"Night Support",{"$f":"'Support Form'!L27","v":"Waking Nights"}]
[null,null,"Support Setting",{"$f":"'Support Form'!L28","v":"Residential"}]

{"sheet":"lookups","index":5,"n_rows":85,"n_cols":3,"rows_kept":85,"cut":false,"hidden":true,"merged":[]}
[]
["Cooking","I need full support and someone to make all my food for me",1]
["Cooking","I can make drinks or snacks myself but need constant support when making meals",2]
["Cooking","I can cook main meals with prompts and supervision or visual guidance ",3]
["Cooking","I can cook all meals independently ",4]
["Eating And Drinking","I need full support with all my eating and drinking, which may include pureeing my food or thickening fluids",1]
["Eating And Drinking","I need constant supervision to make sure I am safe whilst eating and drinking",2]
["Eating And Drinking","I need occasional prompts and checks whilst eating and drinking or on a shared basis",3]
["Eating And Drinking","I can eat and drink all food safely on my own",4]
["Meal Planning","I need full support and someone to plan my nutrition for me",1]
["Meal Planning","I need support with menu planning & shopping but I can choose between options for different meals",2]
["Meal Planning","I can plan my meals & do my shopping but need prompts to keep them healthy",3]
["Meal Planning","I can plan my meals so they are healthy and lead to a balanced diet",4]
["Maintaining Personal Hygiene","I need full support in cleaning myself and maintain personal hygiene",1]
["Maintaining Personal Hygiene","I can wash and shower without physical support but need support/ supervision to make sure I am safe",2]
["Maintaining Personal Hygiene","I am able to wash and shower and maintain my personal hygiene independently, but need prompts so I don’t forget",3]
["Maintaining Personal Hygiene","I can maintain my personal hygiene independently ",4]
["Managing Toilet Needs","I need full support with all my continence needs, including continence aids ",1]
["Managing Toilet Needs","I know when I need to go to the toilet but I need supervision to get to the toilet and use it",2]
["Managing Toilet Needs","I need prompts to go to the toilet but can do it on my own ",3]
["Managing Toilet Needs","I can manage my toileting needs independently ",4]
["Being Appropriately Clothed","I need full support to get dressed and choose appropriate clothes ",1]
["Being Appropriately Clothed","I need support to choose appropriate clothing and may need some assistance to put the clothing on",2]
["Being Appropriately Clothed","I can choose my own appropriate clothing and get dressed with prompting",3]
["Being Appropriately Clothed","I can independently get dressed and choose appropriate clothing",4]
["Being Able To Make Use Of My Home Safely","I need full support to get around",1]
["Being Able To Make Use Of My Home Safely","I need some support to ensure I am safe whilst moving around my home",2]
["Being Able To Make Use Of My Home Safely","I am able to get around but need supervision to ensure my safety ",3]
["Being Able To Make Use Of My Home Safely","I can independently move/ get around without support",4]
["Maintaining A Habitable Home Environment","I need full support to keep my home clean and safe",1]
["Maintaining A Habitable Home Environment","I can do certain tasks but need  support to keep my home clean and safe",2]
["Maintaining A Habitable Home Environment","I can keep my home clean and safe when prompted",3]
["Maintaining A Habitable Home Environment","I can independently keep my home clean and safe ",4]
["Personal Relationships","I need full support to see friends and family and different types of relationship",1]
["Personal Relationships","I need prompts to maintain my current relationships and support to create new relationships",2]
["Personal Relationships","I have a few good relationships and see people when I want to but may need guidance on how to create new ones",3]
["Personal Relationships","I can maintain and create new relationships independently and have good social support around me",4]
["Engaging in Work","I am not ready to work",1]
["Engaging in Work","I need support to find work",2]
["Engaging in Work","I can work but need support to keep it",3]
["Engaging in Work","I can consistently and independently maintain my work role ",4]
["Day Activities","I need full support to spend my time during the day/ evening doing activities that I enjoy",1]
["Day Activities","I need some support to plan activities & keep on task whilst there",2]
["Day Activities","I can choose my own activities but need support to access them",3]
["Day Activities","I can independently and safely fulfil my days ",4]
["Getting Into The Community","I need full support to be able to get out into the community and to keep safe when out and about",1]
["Getting Into The Community","I can get out into the community with shared support to prompt me to stay safe ",2]
["Getting Into The Community","I can access the community independently to places I am familiar with  but need support for less familiar places to make sure I stay safe",3]
["Getting Into The Community","I can access the community independently and safely ",4]
["Transport","I need full support when on public transport or in a mobility vehicle ",1]
["Transport","I am able to use public transport with support ",2]
["Transport","I am able to use public transport independently but may need initial support to access places that are unfamiliar ",3]
["Transport","I can independently and safely travel between locations ",4]
["Personal Safety","I need full support to keep myself safe",1]
["Personal Safety","I am aware of some risk around me but need support to manage these consistently",2]
["Personal Safety","I am aware of risks around me but need occasional prompts/reminders to make sure I stay safe ",3]
["Personal Safety","I am aware of risks around me and can manage these independently ",4]
["Managing Money","I need full support and someone to manage my money (as an Appointee/ LPA) and to help me claim benefits and attend appointments with the DWP",1]
["Managing Money","I am able to manage my money day to day but need support to budget/manage bank accounts safely",2]
["Managing Money","I can manage a weekly budget and pay my bills but need support for any less common money matters including benefits applications etc.",3]
["Managing Money","I can manage all aspects of my finances",4]
["Managing Letters & Correspondences","I need full support and someone to manage my correspondences",1]
["Managing Letters & Correspondences","I have an awareness of letters and correspondences but need support to read and respond to them",2]
["Managing Letters & Correspondences","I am able to read and respond to most letters but need support for any less common matters",3]
["Managing Letters & Correspondences","I can manage all aspects of my letters and correspondences",4]
["Communication",null,1]
["Communication",null,2]
["Communication",null,3]
["Communication",null,4]
["Sexual Health","I do not understand what I means to keep myself sexually safe and healthy",1]
["Sexual Health","I need information, advice and guidance to develop my understanding of how to keep myself sexually safe and healthy",2]
["Sexual Health","I understand and am able to keep myself sexually safe and healthy but need occasional support with one off activities such as managing appointments",3]
["Sexual Health","I am independently able to keep myself sexually safe and healthy  ",4]
["Physical Wellbeing","I need full support to manage my health needs, including medication and accessing health professionals when needed",1]
["Physical Wellbeing","I am able to take my medication with prompts and can recognise when I am feeling unwell but need support to make and attend medical appointments",2]
["Physical Wellbeing","I am able to manage my daily health needs independently.",3]
["Physical Wellbeing",null,4]
["Psychological Wellbeing","I need full support to manage my psychological wellbeing",1]
["Psychological Wellbeing","I am able to recognise when my psychological wellbeing is deteriorating but need support to manage it",2]
["Psychological Wellbeing","I am able to manage my psychological wellbeing on an everyday basis but need support intermittently",3]
["Psychological Wellbeing","I am able to fully independently manage my psychological wellbeing and know who to contact if needed",4]
["Health & Medication",null,1]
["Health & Medication",null,2]
["Health & Medication",null,3]
["Health & Medication",null,4]

{"sheet":"Options","index":6,"n_rows":31,"n_cols":30,"rows_kept":31,"cut":false,"hidden":true,"merged":[]}
["Support Type A","Ratio",null,"Support Type B",null,"Background",null,"Cooking","Eating And Drinking","Meal Planning","Maintaining Personal Hygiene","Managing Toilet Needs","Being Appropriately Clothed","Being Able To Make Use Of My Home Safely","Maintaining A Habitable Home Environment","Personal Relationships","Engaging in Work","Day Activities","Getting Into The Community","Transport","Personal Safety","Managing Money","Managing Letters & Correspondences","Communication","Sexual Health","Physical Wellbeing","Psychological Wellbeing","Health & Medication",null,"Owner"]
["No Support",0,null,"Support Hours - 1 support worker : 2 people",null,1,null,"I need full support and someone to make all my food for me","I need full support with all my eating and drinking, which may include pureeing my food or thickening fluids","I need full support and someone to plan my nutrition for me","I need full support in cleaning myself and maintain personal hygiene","I need full support with all my continence needs, including continence aids ","I need full support to get dressed and choose appropriate clothes ","I need full support to get around","I need full support to keep my home clean and safe","I need full support to see friends and family and different types of relationship","I am not ready to work","I need full support to spend my time during the day/ evening doing activities that I enjoy","I need full support to be able to get out into the community and to keep safe when out and about","I need full support when on public transport or in a mobility vehicle ","I need full support to keep myself safe","I need full support and someone to manage my money (as an Appointee/ LPA) and to help me claim benefits and attend appointments with the DWP","I need full support and someone to manage my correspondences",null,"I do not understand what I means to keep myself sexually safe and healthy","I need full support to manage my health needs, including medication and accessing health professionals when needed","I need full support to manage my psychological wellbeing",null,null,"Care Manager"]
["Support Hours - 1 support worker : 1 person",1,null,"Support Hours - 1 support worker : 3 people",null,2,null,"I can make drinks or snacks myself but need constant support when making meals","I need constant supervision to make sure I am safe whilst eating and drinking","I need support with menu planning & shopping but I can choose between options for different meals","I can wash and shower without physical support but need support/ supervision to make sure I am safe","I know when I need to go to the toilet but I need supervision to get to the toilet and use it","I need support to choose appropriate clothing and may need some assistance to put the clothing on","I need some support to ensure I am safe whilst moving around my home","I can do certain tasks but need  support to keep my home clean and safe","I need prompts to maintain my current relationships and support to create new relationships","I need support to find work","I need some support to plan activities & keep on task whilst there","I can get out into the community with shared support to prompt me to stay safe ","I am able to use public transport with support ","I am aware of some risk around me but need support to manage these consistently","I am able to manage my money day to day but need support to budget/manage bank accounts safely","I have an awareness of letters and correspondences but need support to read and respond to them",null,"I need information, advice and guidance to develop my understanding of how to keep myself sexually safe and healthy","I am able to take my medication with prompts and can recognise when I am feeling unwell but need support to make and attend medical appointments","I am able to recognise when my psychological wellbeing is deteriorating but need support to manage it",null,null,"Individual"]
["Support Hours - 2 support workers : 1 person",2,null,"Support Hours - 1 support worker : 4 people",null,3,null,"I can cook main meals with prompts and supervision or visual guidance ","I need occasional prompts and checks whilst eating and drinking or on a shared basis","I can plan my meals & do my shopping but need prompts to keep them healthy","I am able to wash and shower and maintain my personal hygiene independently, but need prompts so I don’t forget","I need prompts to go to the toilet but can do it on my own ","I can choose my own appropriate clothing and get dressed, with prompting","I am able to get around but need supervision to ensure my safety ","I can keep my home clean and safe when prompted","I have a few good relationships and see people when I want to but may need guidance on how to create new ones","I can work but need support to keep it","I can choose my own activities but need support to access them","I can access the community independently to places I am familiar with  but need support for less familiar places to make sure I stay safe","I am able to use public transport independently but may need initial support to access places that are unfamiliar ","I am aware of risks around me but need occasional prompts/reminders to make sure I stay safe ","I can manage a weekly budget and pay my bills but need support for any less common money matters including benefits applications etc.","I am able to read and respond to most letters but need support for any less common matters",null,"I understand and am able to keep myself sexually safe and healthy but need occasional support with one off activities such as managing appointments","I am able to manage my daily health needs independently.","I am able to manage my psychological wellbeing on an everyday basis but need support intermittently",null,null,"Family / Friends"]
["Support Hours - 3 support workers : 1 person",3,null,null,null,4,null,"I can cook all meals independently ","I can eat and drink all food safely on my own","I can plan my meals so they are healthy and lead to a balanced diet","I can maintain my personal hygiene independently ","I can manage my toileting needs independently ","I can independently get dressed and choose appropriate clothing","I can independently move/ get around without support","I can independently keep my home clean and safe ","I can maintain and create new relationships independently and have good social support around me","I can consistently and independently maintain my work role ","I can independently and safely fulfil my days ","I can access the community independently and safely ","I can independently and safely travel between locations ","I am aware of risks around me and can manage these independently ","I can manage all aspects of my finances","I can manage all aspects of my letters and correspondences",null,"I am independently able to keep myself sexually safe and healthy  ",null,"I am able to fully independently manage my psychological wellbeing and know who to contact if needed",null,null,"Provider"]
["Support Hours - 1 support worker : 2 people",0.5,null,null,null,5,null,null,null,null,null,null,null,null,null,null,null,null,null,null,null,null,null,null,null,null,null,null,null,"OT"]
["Support Hours - 1 support worker : 3 people",{"$f":"1/3","v":0.33333333333333331},null,null,null,6,null,null,null,null,null,null,null,null,null,null,null,null,null,null,null,null,null,null,null,null,null,null,null,"Nursing"]
["Support Hours - 1 support worker : 4 people",{"$f":"1/4","v":0.25},null,null,null,7,null,null,null,null,null,null,null,null,null,null,null,null,null,null,null,null,null,null,null,null,null,null,null,"Other"]
["Support Hours - 1 support worker : 5 people",{"$f":"1/5","v":0.2},null,null,null,8]
["Support Hours - 1 support worker : 6 people",{"$f":"1/6","v":0.16666666666666666},null,null,null,9]
[null,null,null,null,null,10]
[null,null,null,null,null,11]
[null,null,null,null,null,12]
[null,null,null,null,null,13]
[null,null,null,null,null,14]
[null,null,null,null,null,15]
[null,null,null,null,null,16]
[null,null,null,null,null,17]
[null,null,null,null,null,18]
[null,null,null,null,null,19]
[null,null,null,null,null,20]
[null,null,null,null,null,21]
[null,null,null,null,null,22]
[null,null,null,null,null,23]
[null,null,null,null,null,24]
[null,null,null,null,null,25]
[null,null,null,null,null,26]
[null,null,null,null,null,27]
[null,null,null,null,null,28]
[null,null,null,null,null,29]
[null,null,null,null,null,30]

{"sheet":"Data Sheet (2)","index":7,"n_rows":26,"n_cols":27,"rows_kept":26,"cut":false,"hidden":true,"merged":[]}
["Max","Max",4,4,4,5,4,4,4,4,4,5,4,4,4,4,4,4,3,4,4,5]
["Goal","Goal",{"$f":"(INDEX('LookupsC&P'!$C:$C,MATCH('Current & Potential'!A2,'LookupsC&P'!$D:$D,0))/C1)*10","v":2.5},{"$f":"(INDEX('LookupsC&P'!$C:$C,MATCH('Current & Potential'!B2,'LookupsC&P'!$D:$D,0))/D1)*10","v":2.5},{"$f":"(INDEX('LookupsC&P'!$C:$C,MATCH('Current & Potential'!C2,'LookupsC&P'!$D:$D,0))/E1)*10","v":2.5},{"$f":"(INDEX('LookupsC&P'!$C:$C,MATCH('Current & Potential'!D2,'LookupsC&P'!$D:$D,0))/F1)*10","v":2},{"$f":"(INDEX('LookupsC&P'!$C:$C,MATCH('Current & Potential'!E2,'LookupsC&P'!$D:$D,0))/G1)*10","v":2.5},{"$f":"(INDEX('LookupsC&P'!$C:$C,MATCH('Current & Potential'!F2,'LookupsC&P'!$D:$D,0))/H1)*10","v":2.5},{"$f":"(INDEX('LookupsC&P'!$C:$C,MATCH('Current & Potential'!G2,'LookupsC&P'!$D:$D,0))/I1)*10","v":2.5},{"$f":"(INDEX('LookupsC&P'!$C:$C,MATCH('Current & Potential'!H2,'LookupsC&P'!$D:$D,0))/J1)*10","v":2.5},{"$f":"(INDEX('LookupsC&P'!$C:$C,MATCH('Current & Potential'!I2,'LookupsC&P'!$D:$D,0))/K1)*10","v":2.5},{"$f":"(INDEX('LookupsC&P'!$C:$C,MATCH('Current & Potential'!J2,'LookupsC&P'!$D:$D,0))/L1)*10","v":2},{"$f":"(INDEX('LookupsC&P'!$C:$C,MATCH('Current & Potential'!K2,'LookupsC&P'!$D:$D,0))/M1)*10","v":2.5},{"$f":"(INDEX('LookupsC&P'!$C:$C,MATCH('Current & Potential'!L2,'LookupsC&P'!$D:$D,0))/N1)*10","v":2.5},{"$f":"(INDEX('LookupsC&P'!$C:$C,MATCH('Current & Potential'!M2,'LookupsC&P'!$D:$D,0))/O1)*10","v":2.5},{"$f":"(INDEX('LookupsC&P'!$C:$C,MATCH('Current & Potential'!N2,'LookupsC&P'!$D:$D,0))/P1)*10","v":2.5},{"$f":"(INDEX('LookupsC&P'!$C:$C,MATCH('Current & Potential'!O2,'LookupsC&P'!$D:$D,0))/Q1)*10","v":2.5},{"$f":"(INDEX('LookupsC&P'!$C:$C,MATCH('Current & Potential'!P2,'LookupsC&P'!$D:$D,0))/R1)*10","v":2.5},{"$f":"(INDEX('LookupsC&P'!$C:$C,MATCH('Current & Potential'!Q2,'LookupsC&P'!$D:$D,0))/S1)*10","v":3.333333333333333},{"$f":"(INDEX('LookupsC&P'!$C:$C,MATCH('Current & Potential'!R2,'LookupsC&P'!$D:$D,0))/T1)*10","v":2.5},{"$f":"(INDEX('LookupsC&P'!$C:$C,MATCH('Current & Potential'!S2,'LookupsC&P'!$D:$D,0))/U1)*10","v":2.5},{"$f":"(INDEX('LookupsC&P'!$C:$C,MATCH('Current & Potential'!T2,'LookupsC&P'!$D:$D,0))/V1)*10","v":2},null,null,{"$f":"'Front Sheet'!B14","v":0},{"$f":"'Front Sheet'!C14","v":0},{"$f":"IFERROR(INDEX(Support[Ratio],MATCH('Data Sheet (2)'!Y2,Support[Support Type A],0))*'Data Sheet (2)'!Z2,0)","v":0}]
[null,"Basic",{"$f":"(C2/10)*C1","v":1},{"$f":"(D2/10)*D1","v":1},1,1,1,1,1,1,1,1,1,1,1,1,1,1,1,1,1,1,null,null,{"$f":"'Front Sheet'!B15","v":0},{"$f":"'Front Sheet'!C15","v":0},{"$f":"IFERROR(INDEX(Support[Ratio],MATCH('Data Sheet (2)'!Y3,Support[Support Type A],0))*'Data Sheet (2)'!Z3,0)","v":0}]
["Current",{"$f":"TODAY()","v":"2019-08-22"},{"$f":"(INDEX('LookupsC&P'!$C:$C,MATCH('Current & Potential'!A1,'LookupsC&P'!$A:$A,0))/C1)*10","v":2.5},{"$f":"(INDEX('LookupsC&P'!$C:$C,MATCH('Current & Potential'!B1,'LookupsC&P'!$A:$A,0))/D1)*10","v":2.5},{"$f":"(INDEX('LookupsC&P'!$C:$C,MATCH('Current & Potential'!C1,'LookupsC&P'!$A:$A,0))/E1)*10","v":2.5},{"$f":"(INDEX('LookupsC&P'!$C:$C,MATCH('Current & Potential'!D1,'LookupsC&P'!$A:$A,0))/F1)*10","v":2},{"$f":"(INDEX('LookupsC&P'!$C:$C,MATCH('Current & Potential'!E1,'LookupsC&P'!$A:$A,0))/G1)*10","v":2.5},{"$f":"(INDEX('LookupsC&P'!$C:$C,MATCH('Current & Potential'!F1,'LookupsC&P'!$A:$A,0))/H1)*10","v":2.5},{"$f":"(INDEX('LookupsC&P'!$C:$C,MATCH('Current & Potential'!G1,'LookupsC&P'!$A:$A,0))/I1)*10","v":2.5},{"$f":"(INDEX('LookupsC&P'!$C:$C,MATCH('Current & Potential'!H1,'LookupsC&P'!$A:$A,0))/J1)*10","v":2.5},{"$f":"(INDEX('LookupsC&P'!$C:$C,MATCH('Current & Potential'!I1,'LookupsC&P'!$A:$A,0))/K1)*10","v":2.5},{"$f":"(INDEX('LookupsC&P'!$C:$C,MATCH('Current & Potential'!J1,'LookupsC&P'!$A:$A,0))/L1)*10","v":2},{"$f":"(INDEX('LookupsC&P'!$C:$C,MATCH('Current & Potential'!K1,'LookupsC&P'!$A:$A,0))/M1)*10","v":2.5},{"$f":"(INDEX('LookupsC&P'!$C:$C,MATCH('Current & Potential'!L1,'LookupsC&P'!$A:$A,0))/N1)*10","v":2.5},{"$f":"(INDEX('LookupsC&P'!$C:$C,MATCH('Current & Potential'!M1,'LookupsC&P'!$A:$A,0))/O1)*10","v":2.5},{"$f":"(INDEX('LookupsC&P'!$C:$C,MATCH('Current & Potential'!N1,'LookupsC&P'!$A:$A,0))/P1)*10","v":2.5},{"$f":"(INDEX('LookupsC&P'!$C:$C,MATCH('Current & Potential'!O1,'LookupsC&P'!$A:$A,0))/Q1)*10","v":2.5},{"$f":"(INDEX('LookupsC&P'!$C:$C,MATCH('Current & Potential'!P1,'LookupsC&P'!$A:$A,0))/R1)*10","v":2.5},{"$f":"(INDEX('LookupsC&P'!$C:$C,MATCH('Current & Potential'!Q1,'LookupsC&P'!$A:$A,0))/S1)*10","v":3.333333333333333},{"$f":"(INDEX('LookupsC&P'!$C:$C,MATCH('Current & Potential'!R1,'LookupsC&P'!$A:$A,0))/T1)*10","v":2.5},{"$f":"(INDEX('LookupsC&P'!$C:$C,MATCH('Current & Potential'!S1,'LookupsC&P'!$A:$A,0))/U1)*10","v":2.5},{"$f":"(INDEX('LookupsC&P'!$C:$C,MATCH('Current & Potential'!T1,'LookupsC&P'!$A:$A,0))/V1)*10","v":2},null,null,{"$f":"'Front Sheet'!B16","v":0},{"$f":"'Front Sheet'!C16","v":0},{"$f":"IFERROR(INDEX(Support[Ratio],MATCH('Data Sheet (2)'!Y4,Support[Support Type A],0))*'Data Sheet (2)'!Z4,0)","v":0}]
[null,"Basic",{"$f":"(C4/10)*C1","v":1},{"$f":"(D4/10)*D1","v":1},1,1,1,1,1,1,1,1,1,1,1,1,1,1,1,1,1,1,{"$f":"(SUM(C5:V5)/SUM(C1:V1))*100","v":24.390243902439025},null,{"$f":"'Front Sheet'!B17","v":0},{"$f":"'Front Sheet'!C17","v":0},{"$f":"IFERROR(INDEX(Support[Ratio],MATCH('Data Sheet (2)'!Y5,Support[Support Type A],0))*'Data Sheet (2)'!Z5,0)","v":0}]
[null,"Date","Cooking","Eating and Drinking","Meal Planning","Washing and Keeping Clean","Toilet Needs","Dressing","Getting Around My Home","Safe and Clean Home","Personal Relationships","Day Activities","Work/ Volunteering","Getting into the Community","Transport","Personal Safety","Managing Money","Managing Correspondences","Physical Wellbeing","Psychological Wellbeing","Night Support","Support Setting",null,null,{"$f":"'Front Sheet'!#REF!","v":{"$error":"#REF!"}},{"$f":"'Front Sheet'!#REF!","v":{"$error":"#REF!"}},{"$f":"IFERROR(Z6/Y6,0)","v":0}]
[null,{"$f":"'Data Sheet'!B7","v":"Last Review"},{"$f":"('Data Sheet'!C7/C$1)*10","v":2.5},{"$f":"('Data Sheet'!D7/D$1)*10","v":2.5},{"$f":"('Data Sheet'!E7/E$1)*10","v":2.5},{"$f":"('Data Sheet'!F7/F$1)*10","v":2},{"$f":"('Data Sheet'!G7/G$1)*10","v":2.5},{"$f":"('Data Sheet'!H7/H$1)*10","v":2.5},{"$f":"('Data Sheet'!I7/I$1)*10","v":2.5},{"$f":"('Data Sheet'!J7/J$1)*10","v":2.5},{"$f":"('Data Sheet'!K7/K$1)*10","v":2.5},{"$f":"('Data Sheet'!L7/L$1)*10","v":2},{"$f":"('Data Sheet'!M7/M$1)*10","v":2.5},{"$f":"('Data Sheet'!N7/N$1)*10","v":2.5},{"$f":"('Data Sheet'!O7/O$1)*10","v":2.5},{"$f":"('Data Sheet'!P7/P$1)*10","v":2.5},{"$f":"('Data Sheet'!Q7/Q$1)*10","v":2.5},{"$f":"('Data Sheet'!R7/R$1)*10","v":2.5},{"$f":"('Data Sheet'!S7/S$1)*10","v":3.333333333333333},{"$f":"('Data Sheet'!T7/T$1)*10","v":2.5},{"$f":"('Data Sheet'!U7/U$1)*10","v":2.5},{"$f":"('Data Sheet'!V7/V$1)*10","v":2},null,null,{"$f":"'Front Sheet'!#REF!","v":{"$error":"#REF!"}},{"$f":"'Front Sheet'!#REF!","v":{"$error":"#REF!"}},{"$f":"IFERROR(Z7/Y7,0)","v":0}]
[null,{"$f":"'Data Sheet'!B8","v":"00:00:00"},{"$f":"('Data Sheet'!C8/C$1)*10","v":0},{"$f":"('Data Sheet'!D8/D$1)*10","v":0},{"$f":"('Data Sheet'!E8/E$1)*10","v":0},{"$f":"('Data Sheet'!F8/F$1)*10","v":0},{"$f":"('Data Sheet'!G8/G$1)*10","v":0},{"$f":"('Data Sheet'!H8/H$1)*10","v":0},{"$f":"('Data Sheet'!I8/I$1)*10","v":0},{"$f":"('Data Sheet'!J8/J$1)*10","v":0},{"$f":"('Data Sheet'!K8/K$1)*10","v":0},{"$f":"('Data Sheet'!L8/L$1)*10","v":0},{"$f":"('Data Sheet'!M8/M$1)*10","v":0},{"$f":"('Data Sheet'!N8/N$1)*10","v":0},{"$f":"('Data Sheet'!O8/O$1)*10","v":0},{"$f":"('Data Sheet'!P8/P$1)*10","v":0},{"$f":"('Data Sheet'!Q8/Q$1)*10","v":0},{"$f":"('Data Sheet'!R8/R$1)*10","v":0},{"$f":"('Data Sheet'!S8/S$1)*10","v":0},{"$f":"('Data Sheet'!T8/T$1)*10","v":0},{"$f":"('Data Sheet'!U8/U$1)*10","v":0},{"$f":"('Data Sheet'!V8/V$1)*10","v":0},null,null,{"$f":"'Front Sheet'!#REF!","v":{"$error":"#REF!"}},{"$f":"'Front Sheet'!#REF!","v":{"$error":"#REF!"}},0]
[null,{"$f":"'Data Sheet'!B9","v":"00:00:00"},{"$f":"('Data Sheet'!C9/C$1)*10","v":0},{"$f":"('Data Sheet'!D9/D$1)*10","v":0},{"$f":"('Data Sheet'!E9/E$1)*10","v":0},{"$f":"('Data Sheet'!F9/F$1)*10","v":0},{"$f":"('Data Sheet'!G9/G$1)*10","v":0},{"$f":"('Data Sheet'!H9/H$1)*10","v":0},{"$f":"('Data Sheet'!I9/I$1)*10","v":0},{"$f":"('Data Sheet'!J9/J$1)*10","v":0},{"$f":"('Data Sheet'!K9/K$1)*10","v":0},{"$f":"('Data Sheet'!L9/L$1)*10","v":0},{"$f":"('Data Sheet'!M9/M$1)*10","v":0},{"$f":"('Data Sheet'!N9/N$1)*10","v":0},{"$f":"('Data Sheet'!O9/O$1)*10","v":0},{"$f":"('Data Sheet'!P9/P$1)*10","v":0},{"$f":"('Data Sheet'!Q9/Q$1)*10","v":0},{"$f":"('Data Sheet'!R9/R$1)*10","v":0},{"$f":"('Data Sheet'!S9/S$1)*10","v":0},{"$f":"('Data Sheet'!T9/T$1)*10","v":0},{"$f":"('Data Sheet'!U9/U$1)*10","v":0},{"$f":"('Data Sheet'!V9/V$1)*10","v":0},null,null,{"$f":"'Front Sheet'!#REF!","v":{"$error":"#REF!"}},{"$f":"'Front Sheet'!#REF!","v":{"$error":"#REF!"}},{"$f":"IFERROR(Z9/Y9,0)","v":0}]
[null,{"$f":"'Data Sheet'!B10","v":"00:00:00"},{"$f":"('Data Sheet'!C10/C$1)*10","v":0},{"$f":"('Data Sheet'!D10/D$1)*10","v":0},{"$f":"('Data Sheet'!E10/E$1)*10","v":0},{"$f":"('Data Sheet'!F10/F$1)*10","v":0},{"$f":"('Data Sheet'!G10/G$1)*10","v":0},{"$f":"('Data Sheet'!H10/H$1)*10","v":0},{"$f":"('Data Sheet'!I10/I$1)*10","v":0},{"$f":"('Data Sheet'!J10/J$1)*10","v":0},{"$f":"('Data Sheet'!K10/K$1)*10","v":0},{"$f":"('Data Sheet'!L10/L$1)*10","v":0},{"$f":"('Data Sheet'!M10/M$1)*10","v":0},{"$f":"('Data Sheet'!N10/N$1)*10","v":0},{"$f":"('Data Sheet'!O10/O$1)*10","v":0},{"$f":"('Data Sheet'!P10/P$1)*10","v":0},{"$f":"('Data Sheet'!Q10/Q$1)*10","v":0},{"$f":"('Data Sheet'!R10/R$1)*10","v":0},{"$f":"('Data Sheet'!S10/S$1)*10","v":0},{"$f":"('Data Sheet'!T10/T$1)*10","v":0},{"$f":"('Data Sheet'!U10/U$1)*10","v":0},{"$f":"('Data Sheet'!V10/V$1)*10","v":0}]
[null,{"$f":"'Data Sheet'!B11","v":"00:00:00"},{"$f":"('Data Sheet'!C11/C$1)*10","v":0},{"$f":"('Data Sheet'!D11/D$1)*10","v":0},{"$f":"('Data Sheet'!E11/E$1)*10","v":0},{"$f":"('Data Sheet'!F11/F$1)*10","v":0},{"$f":"('Data Sheet'!G11/G$1)*10","v":0},{"$f":"('Data Sheet'!H11/H$1)*10","v":0},{"$f":"('Data Sheet'!I11/I$1)*10","v":0},{"$f":"('Data Sheet'!J11/J$1)*10","v":0},{"$f":"('Data Sheet'!K11/K$1)*10","v":0},{"$f":"('Data Sheet'!L11/L$1)*10","v":0},{"$f":"('Data Sheet'!M11/M$1)*10","v":0},{"$f":"('Data Sheet'!N11/N$1)*10","v":0},{"$f":"('Data Sheet'!O11/O$1)*10","v":0},{"$f":"('Data Sheet'!P11/P$1)*10","v":0},{"$f":"('Data Sheet'!Q11/Q$1)*10","v":0},{"$f":"('Data Sheet'!R11/R$1)*10","v":0},{"$f":"('Data Sheet'!S11/S$1)*10","v":0},{"$f":"('Data Sheet'!T11/T$1)*10","v":0},{"$f":"('Data Sheet'!U11/U$1)*10","v":0},{"$f":"('Data Sheet'!V11/V$1)*10","v":0},null,null,null,null,{"$f":"SUM(AA2:AA9)","v":0}]
[null,{"$f":"'Data Sheet'!B12","v":"00:00:00"},{"$f":"('Data Sheet'!C12/C$1)*10","v":0},{"$f":"('Data Sheet'!D12/D$1)*10","v":0},{"$f":"('Data Sheet'!E12/E$1)*10","v":0},{"$f":"('Data Sheet'!F12/F$1)*10","v":0},{"$f":"('Data Sheet'!G12/G$1)*10","v":0},{"$f":"('Data Sheet'!H12/H$1)*10","v":0},{"$f":"('Data Sheet'!I12/I$1)*10","v":0},{"$f":"('Data Sheet'!J12/J$1)*10","v":0},{"$f":"('Data Sheet'!K12/K$1)*10","v":0},{"$f":"('Data Sheet'!L12/L$1)*10","v":0},{"$f":"('Data Sheet'!M12/M$1)*10","v":0},{"$f":"('Data Sheet'!N12/N$1)*10","v":0},{"$f":"('Data Sheet'!O12/O$1)*10","v":0},{"$f":"('Data Sheet'!P12/P$1)*10","v":0},{"$f":"('Data Sheet'!Q12/Q$1)*10","v":0},{"$f":"('Data Sheet'!R12/R$1)*10","v":0},{"$f":"('Data Sheet'!S12/S$1)*10","v":0},{"$f":"('Data Sheet'!T12/T$1)*10","v":0},{"$f":"('Data Sheet'!U12/U$1)*10","v":0},{"$f":"('Data Sheet'!V12/V$1)*10","v":0}]
[null,{"$f":"'Data Sheet'!B13","v":"00:00:00"},{"$f":"('Data Sheet'!C13/C$1)*10","v":0},{"$f":"('Data Sheet'!D13/D$1)*10","v":0},{"$f":"('Data Sheet'!E13/E$1)*10","v":0},{"$f":"('Data Sheet'!F13/F$1)*10","v":0},{"$f":"('Data Sheet'!G13/G$1)*10","v":0},{"$f":"('Data Sheet'!H13/H$1)*10","v":0},{"$f":"('Data Sheet'!I13/I$1)*10","v":0},{"$f":"('Data Sheet'!J13/J$1)*10","v":0},{"$f":"('Data Sheet'!K13/K$1)*10","v":0},{"$f":"('Data Sheet'!L13/L$1)*10","v":0},{"$f":"('Data Sheet'!M13/M$1)*10","v":0},{"$f":"('Data Sheet'!N13/N$1)*10","v":0},{"$f":"('Data Sheet'!O13/O$1)*10","v":0},{"$f":"('Data Sheet'!P13/P$1)*10","v":0},{"$f":"('Data Sheet'!Q13/Q$1)*10","v":0},{"$f":"('Data Sheet'!R13/R$1)*10","v":0},{"$f":"('Data Sheet'!S13/S$1)*10","v":0},{"$f":"('Data Sheet'!T13/T$1)*10","v":0},{"$f":"('Data Sheet'!U13/U$1)*10","v":0},{"$f":"('Data Sheet'!V13/V$1)*10","v":0}]
[null,{"$f":"'Data Sheet'!B14","v":"00:00:00"},{"$f":"('Data Sheet'!C14/C$1)*10","v":0},{"$f":"('Data Sheet'!D14/D$1)*10","v":0},{"$f":"('Data Sheet'!E14/E$1)*10","v":0},{"$f":"('Data Sheet'!F14/F$1)*10","v":0},{"$f":"('Data Sheet'!G14/G$1)*10","v":0},{"$f":"('Data Sheet'!H14/H$1)*10","v":0},{"$f":"('Data Sheet'!I14/I$1)*10","v":0},{"$f":"('Data Sheet'!J14/J$1)*10","v":0},{"$f":"('Data Sheet'!K14/K$1)*10","v":0},{"$f":"('Data Sheet'!L14/L$1)*10","v":0},{"$f":"('Data Sheet'!M14/M$1)*10","v":0},{"$f":"('Data Sheet'!N14/N$1)*10","v":0},{"$f":"('Data Sheet'!O14/O$1)*10","v":0},{"$f":"('Data Sheet'!P14/P$1)*10","v":0},{"$f":"('Data Sheet'!Q14/Q$1)*10","v":0},{"$f":"('Data Sheet'!R14/R$1)*10","v":0},{"$f":"('Data Sheet'!S14/S$1)*10","v":0},{"$f":"('Data Sheet'!T14/T$1)*10","v":0},{"$f":"('Data Sheet'!U14/U$1)*10","v":0},{"$f":"('Data Sheet'!V14/V$1)*10","v":0}]
[null,{"$f":"'Data Sheet'!B15","v":"00:00:00"},{"$f":"('Data Sheet'!C15/C$1)*10","v":0},{"$f":"('Data Sheet'!D15/D$1)*10","v":0},{"$f":"('Data Sheet'!E15/E$1)*10","v":0},{"$f":"('Data Sheet'!F15/F$1)*10","v":0},{"$f":"('Data Sheet'!G15/G$1)*10","v":0},{"$f":"('Data Sheet'!H15/H$1)*10","v":0},{"$f":"('Data Sheet'!I15/I$1)*10","v":0},{"$f":"('Data Sheet'!J15/J$1)*10","v":0},{"$f":"('Data Sheet'!K15/K$1)*10","v":0},{"$f":"('Data Sheet'!L15/L$1)*10","v":0},{"$f":"('Data Sheet'!M15/M$1)*10","v":0},{"$f":"('Data Sheet'!N15/N$1)*10","v":0},{"$f":"('Data Sheet'!O15/O$1)*10","v":0},{"$f":"('Data Sheet'!P15/P$1)*10","v":0},{"$f":"('Data Sheet'!Q15/Q$1)*10","v":0},{"$f":"('Data Sheet'!R15/R$1)*10","v":0},{"$f":"('Data Sheet'!S15/S$1)*10","v":0},{"$f":"('Data Sheet'!T15/T$1)*10","v":0},{"$f":"('Data Sheet'!U15/U$1)*10","v":0},{"$f":"('Data Sheet'!V15/V$1)*10","v":0}]
[null,{"$f":"'Data Sheet'!B16","v":"00:00:00"},{"$f":"('Data Sheet'!C16/C$1)*10","v":0},{"$f":"('Data Sheet'!D16/D$1)*10","v":0},{"$f":"('Data Sheet'!E16/E$1)*10","v":0},{"$f":"('Data Sheet'!F16/F$1)*10","v":0},{"$f":"('Data Sheet'!G16/G$1)*10","v":0},{"$f":"('Data Sheet'!H16/H$1)*10","v":0},{"$f":"('Data Sheet'!I16/I$1)*10","v":0},{"$f":"('Data Sheet'!J16/J$1)*10","v":0},{"$f":"('Data Sheet'!K16/K$1)*10","v":0},{"$f":"('Data Sheet'!L16/L$1)*10","v":0},{"$f":"('Data Sheet'!M16/M$1)*10","v":0},{"$f":"('Data Sheet'!N16/N$1)*10","v":0},{"$f":"('Data Sheet'!O16/O$1)*10","v":0},{"$f":"('Data Sheet'!P16/P$1)*10","v":0},{"$f":"('Data Sheet'!Q16/Q$1)*10","v":0},{"$f":"('Data Sheet'!R16/R$1)*10","v":0},{"$f":"('Data Sheet'!S16/S$1)*10","v":0},{"$f":"('Data Sheet'!T16/T$1)*10","v":0},{"$f":"('Data Sheet'!U16/U$1)*10","v":0},{"$f":"('Data Sheet'!V16/V$1)*10","v":0}]
[null,{"$f":"'Data Sheet'!B17","v":"00:00:00"},{"$f":"('Data Sheet'!C17/C$1)*10","v":0},{"$f":"('Data Sheet'!D17/D$1)*10","v":0},{"$f":"('Data Sheet'!E17/E$1)*10","v":0},{"$f":"('Data Sheet'!F17/F$1)*10","v":0},{"$f":"('Data Sheet'!G17/G$1)*10","v":0},{"$f":"('Data Sheet'!H17/H$1)*10","v":0},{"$f":"('Data Sheet'!I17/I$1)*10","v":0},{"$f":"('Data Sheet'!J17/J$1)*10","v":0},{"$f":"('Data Sheet'!K17/K$1)*10","v":0},{"$f":"('Data Sheet'!L17/L$1)*10","v":0},{"$f":"('Data Sheet'!M17/M$1)*10","v":0},{"$f":"('Data Sheet'!N17/N$1)*10","v":0},{"$f":"('Data Sheet'!O17/O$1)*10","v":0},{"$f":"('Data Sheet'!P17/P$1)*10","v":0},{"$f":"('Data Sheet'!Q17/Q$1)*10","v":0},{"$f":"('Data Sheet'!R17/R$1)*10","v":0},{"$f":"('Data Sheet'!S17/S$1)*10","v":0},{"$f":"('Data Sheet'!T17/T$1)*10","v":0},{"$f":"('Data Sheet'!U17/U$1)*10","v":0},{"$f":"('Data Sheet'!V17/V$1)*10","v":0}]
[null,{"$f":"'Data Sheet'!B18","v":"00:00:00"},{"$f":"('Data Sheet'!C18/C$1)*10","v":0},{"$f":"('Data Sheet'!D18/D$1)*10","v":0},{"$f":"('Data Sheet'!E18/E$1)*10","v":0},{"$f":"('Data Sheet'!F18/F$1)*10","v":0},{"$f":"('Data Sheet'!G18/G$1)*10","v":0},{"$f":"('Data Sheet'!H18/H$1)*10","v":0},{"$f":"('Data Sheet'!I18/I$1)*10","v":0},{"$f":"('Data Sheet'!J18/J$1)*10","v":0},{"$f":"('Data Sheet'!K18/K$1)*10","v":0},{"$f":"('Data Sheet'!L18/L$1)*10","v":0},{"$f":"('Data Sheet'!M18/M$1)*10","v":0},{"$f":"('Data Sheet'!N18/N$1)*10","v":0},{"$f":"('Data Sheet'!O18/O$1)*10","v":0},{"$f":"('Data Sheet'!P18/P$1)*10","v":0},{"$f":"('Data Sheet'!Q18/Q$1)*10","v":0},{"$f":"('Data Sheet'!R18/R$1)*10","v":0},{"$f":"('Data Sheet'!S18/S$1)*10","v":0},{"$f":"('Data Sheet'!T18/T$1)*10","v":0},{"$f":"('Data Sheet'!U18/U$1)*10","v":0},{"$f":"('Data Sheet'!V18/V$1)*10","v":0}]
[null,{"$f":"'Data Sheet'!B19","v":"00:00:00"},{"$f":"('Data Sheet'!C19/C$1)*10","v":0},{"$f":"('Data Sheet'!D19/D$1)*10","v":0},{"$f":"('Data Sheet'!E19/E$1)*10","v":0},{"$f":"('Data Sheet'!F19/F$1)*10","v":0},{"$f":"('Data Sheet'!G19/G$1)*10","v":0},{"$f":"('Data Sheet'!H19/H$1)*10","v":0},{"$f":"('Data Sheet'!I19/I$1)*10","v":0},{"$f":"('Data Sheet'!J19/J$1)*10","v":0},{"$f":"('Data Sheet'!K19/K$1)*10","v":0},{"$f":"('Data Sheet'!L19/L$1)*10","v":0},{"$f":"('Data Sheet'!M19/M$1)*10","v":0},{"$f":"('Data Sheet'!N19/N$1)*10","v":0},{"$f":"('Data Sheet'!O19/O$1)*10","v":0},{"$f":"('Data Sheet'!P19/P$1)*10","v":0},{"$f":"('Data Sheet'!Q19/Q$1)*10","v":0},{"$f":"('Data Sheet'!R19/R$1)*10","v":0},{"$f":"('Data Sheet'!S19/S$1)*10","v":0},{"$f":"('Data Sheet'!T19/T$1)*10","v":0},{"$f":"('Data Sheet'!U19/U$1)*10","v":0},{"$f":"('Data Sheet'!V19/V$1)*10","v":0}]
[null,{"$f":"'Data Sheet'!B20","v":"00:00:00"},{"$f":"('Data Sheet'!C20/C$1)*10","v":0},{"$f":"('Data Sheet'!D20/D$1)*10","v":0},{"$f":"('Data Sheet'!E20/E$1)*10","v":0},{"$f":"('Data Sheet'!F20/F$1)*10","v":0},{"$f":"('Data Sheet'!G20/G$1)*10","v":0},{"$f":"('Data Sheet'!H20/H$1)*10","v":0},{"$f":"('Data Sheet'!I20/I$1)*10","v":0},{"$f":"('Data Sheet'!J20/J$1)*10","v":0},{"$f":"('Data Sheet'!K20/K$1)*10","v":0},{"$f":"('Data Sheet'!L20/L$1)*10","v":0},{"$f":"('Data Sheet'!M20/M$1)*10","v":0},{"$f":"('Data Sheet'!N20/N$1)*10","v":0},{"$f":"('Data Sheet'!O20/O$1)*10","v":0},{"$f":"('Data Sheet'!P20/P$1)*10","v":0},{"$f":"('Data Sheet'!Q20/Q$1)*10","v":0},{"$f":"('Data Sheet'!R20/R$1)*10","v":0},{"$f":"('Data Sheet'!S20/S$1)*10","v":0},{"$f":"('Data Sheet'!T20/T$1)*10","v":0},{"$f":"('Data Sheet'!U20/U$1)*10","v":0},{"$f":"('Data Sheet'!V20/V$1)*10","v":0}]
[null,{"$f":"'Data Sheet'!B21","v":"00:00:00"},{"$f":"('Data Sheet'!C21/C$1)*10","v":0},{"$f":"('Data Sheet'!D21/D$1)*10","v":0},{"$f":"('Data Sheet'!E21/E$1)*10","v":0},{"$f":"('Data Sheet'!F21/F$1)*10","v":0},{"$f":"('Data Sheet'!G21/G$1)*10","v":0},{"$f":"('Data Sheet'!H21/H$1)*10","v":0},{"$f":"('Data Sheet'!I21/I$1)*10","v":0},{"$f":"('Data Sheet'!J21/J$1)*10","v":0},{"$f":"('Data Sheet'!K21/K$1)*10","v":0},{"$f":"('Data Sheet'!L21/L$1)*10","v":0},{"$f":"('Data Sheet'!M21/M$1)*10","v":0},{"$f":"('Data Sheet'!N21/N$1)*10","v":0},{"$f":"('Data Sheet'!O21/O$1)*10","v":0},{"$f":"('Data Sheet'!P21/P$1)*10","v":0},{"$f":"('Data Sheet'!Q21/Q$1)*10","v":0},{"$f":"('Data Sheet'!R21/R$1)*10","v":0},{"$f":"('Data Sheet'!S21/S$1)*10","v":0},{"$f":"('Data Sheet'!T21/T$1)*10","v":0},{"$f":"('Data Sheet'!U21/U$1)*10","v":0},{"$f":"('Data Sheet'!V21/V$1)*10","v":0}]
[null,{"$f":"'Data Sheet'!B22","v":"00:00:00"},{"$f":"('Data Sheet'!C22/C$1)*10","v":0},{"$f":"('Data Sheet'!D22/D$1)*10","v":0},{"$f":"('Data Sheet'!E22/E$1)*10","v":0},{"$f":"('Data Sheet'!F22/F$1)*10","v":0},{"$f":"('Data Sheet'!G22/G$1)*10","v":0},{"$f":"('Data Sheet'!H22/H$1)*10","v":0},{"$f":"('Data Sheet'!I22/I$1)*10","v":0},{"$f":"('Data Sheet'!J22/J$1)*10","v":0},{"$f":"('Data Sheet'!K22/K$1)*10","v":0},{"$f":"('Data Sheet'!L22/L$1)*10","v":0},{"$f":"('Data Sheet'!M22/M$1)*10","v":0},{"$f":"('Data Sheet'!N22/N$1)*10","v":0},{"$f":"('Data Sheet'!O22/O$1)*10","v":0},{"$f":"('Data Sheet'!P22/P$1)*10","v":0},{"$f":"('Data Sheet'!Q22/Q$1)*10","v":0},{"$f":"('Data Sheet'!R22/R$1)*10","v":0},{"$f":"('Data Sheet'!S22/S$1)*10","v":0},{"$f":"('Data Sheet'!T22/T$1)*10","v":0},{"$f":"('Data Sheet'!U22/U$1)*10","v":0},{"$f":"('Data Sheet'!V22/V$1)*10","v":0}]
[null,{"$f":"'Data Sheet'!B23","v":"00:00:00"},{"$f":"('Data Sheet'!C23/C$1)*10","v":0},{"$f":"('Data Sheet'!D23/D$1)*10","v":0},{"$f":"('Data Sheet'!E23/E$1)*10","v":0},{"$f":"('Data Sheet'!F23/F$1)*10","v":0},{"$f":"('Data Sheet'!G23/G$1)*10","v":0},{"$f":"('Data Sheet'!H23/H$1)*10","v":0},{"$f":"('Data Sheet'!I23/I$1)*10","v":0},{"$f":"('Data Sheet'!J23/J$1)*10","v":0},{"$f":"('Data Sheet'!K23/K$1)*10","v":0},{"$f":"('Data Sheet'!L23/L$1)*10","v":0},{"$f":"('Data Sheet'!M23/M$1)*10","v":0},{"$f":"('Data Sheet'!N23/N$1)*10","v":0},{"$f":"('Data Sheet'!O23/O$1)*10","v":0},{"$f":"('Data Sheet'!P23/P$1)*10","v":0},{"$f":"('Data Sheet'!Q23/Q$1)*10","v":0},{"$f":"('Data Sheet'!R23/R$1)*10","v":0},{"$f":"('Data Sheet'!S23/S$1)*10","v":0},{"$f":"('Data Sheet'!T23/T$1)*10","v":0},{"$f":"('Data Sheet'!U23/U$1)*10","v":0},{"$f":"('Data Sheet'!V23/V$1)*10","v":0}]
[null,{"$f":"'Data Sheet'!B24","v":"00:00:00"},{"$f":"('Data Sheet'!C24/C$1)*10","v":0},{"$f":"('Data Sheet'!D24/D$1)*10","v":0},{"$f":"('Data Sheet'!E24/E$1)*10","v":0},{"$f":"('Data Sheet'!F24/F$1)*10","v":0},{"$f":"('Data Sheet'!G24/G$1)*10","v":0},{"$f":"('Data Sheet'!H24/H$1)*10","v":0},{"$f":"('Data Sheet'!I24/I$1)*10","v":0},{"$f":"('Data Sheet'!J24/J$1)*10","v":0},{"$f":"('Data Sheet'!K24/K$1)*10","v":0},{"$f":"('Data Sheet'!L24/L$1)*10","v":0},{"$f":"('Data Sheet'!M24/M$1)*10","v":0},{"$f":"('Data Sheet'!N24/N$1)*10","v":0},{"$f":"('Data Sheet'!O24/O$1)*10","v":0},{"$f":"('Data Sheet'!P24/P$1)*10","v":0},{"$f":"('Data Sheet'!Q24/Q$1)*10","v":0},{"$f":"('Data Sheet'!R24/R$1)*10","v":0},{"$f":"('Data Sheet'!S24/S$1)*10","v":0},{"$f":"('Data Sheet'!T24/T$1)*10","v":0},{"$f":"('Data Sheet'!U24/U$1)*10","v":0},{"$f":"('Data Sheet'!V24/V$1)*10","v":0}]
[null,{"$f":"'Data Sheet'!B25","v":"00:00:00"},{"$f":"('Data Sheet'!C25/C$1)*10","v":0},{"$f":"('Data Sheet'!D25/D$1)*10","v":0},{"$f":"('Data Sheet'!E25/E$1)*10","v":0},{"$f":"('Data Sheet'!F25/F$1)*10","v":0},{"$f":"('Data Sheet'!G25/G$1)*10","v":0},{"$f":"('Data Sheet'!H25/H$1)*10","v":0},{"$f":"('Data Sheet'!I25/I$1)*10","v":0},{"$f":"('Data Sheet'!J25/J$1)*10","v":0},{"$f":"('Data Sheet'!K25/K$1)*10","v":0},{"$f":"('Data Sheet'!L25/L$1)*10","v":0},{"$f":"('Data Sheet'!M25/M$1)*10","v":0},{"$f":"('Data Sheet'!N25/N$1)*10","v":0},{"$f":"('Data Sheet'!O25/O$1)*10","v":0},{"$f":"('Data Sheet'!P25/P$1)*10","v":0},{"$f":"('Data Sheet'!Q25/Q$1)*10","v":0},{"$f":"('Data Sheet'!R25/R$1)*10","v":0},{"$f":"('Data Sheet'!S25/S$1)*10","v":0},{"$f":"('Data Sheet'!T25/T$1)*10","v":0},{"$f":"('Data Sheet'!U25/U$1)*10","v":0},{"$f":"('Data Sheet'!V25/V$1)*10","v":0}]
[null,{"$f":"'Data Sheet'!B26","v":"00:00:00"},{"$f":"('Data Sheet'!C26/C$1)*10","v":0},{"$f":"('Data Sheet'!D26/D$1)*10","v":0},{"$f":"('Data Sheet'!E26/E$1)*10","v":0},{"$f":"('Data Sheet'!F26/F$1)*10","v":0},{"$f":"('Data Sheet'!G26/G$1)*10","v":0},{"$f":"('Data Sheet'!H26/H$1)*10","v":0},{"$f":"('Data Sheet'!I26/I$1)*10","v":0},{"$f":"('Data Sheet'!J26/J$1)*10","v":0},{"$f":"('Data Sheet'!K26/K$1)*10","v":0},{"$f":"('Data Sheet'!L26/L$1)*10","v":0},{"$f":"('Data Sheet'!M26/M$1)*10","v":0},{"$f":"('Data Sheet'!N26/N$1)*10","v":0},{"$f":"('Data Sheet'!O26/O$1)*10","v":0},{"$f":"('Data Sheet'!P26/P$1)*10","v":0},{"$f":"('Data Sheet'!Q26/Q$1)*10","v":0},{"$f":"('Data Sheet'!R26/R$1)*10","v":0},{"$f":"('Data Sheet'!S26/S$1)*10","v":0},{"$f":"('Data Sheet'!T26/T$1)*10","v":0},{"$f":"('Data Sheet'!U26/U$1)*10","v":0},{"$f":"('Data Sheet'!V26/V$1)*10","v":0}]

{"sheet":"Data Sheet","index":8,"n_rows":7,"n_cols":22,"rows_kept":7,"cut":false,"hidden":true,"merged":[[1,2,1,4]]}
[]
[null,"Name",{"$f":"'Support Form'!C3","v":0}]
[null,"Today's:"]
[null,{"$f":"TODAY()","v":"2019-08-22"},{"$f":"INDEX('LookupsC&P'!$C:$C,MATCH('Current & Potential'!A1,'LookupsC&P'!$A:$A,0))","v":1},{"$f":"INDEX('LookupsC&P'!$C:$C,MATCH('Current & Potential'!B1,'LookupsC&P'!$A:$A,0))","v":1},{"$f":"INDEX('LookupsC&P'!$C:$C,MATCH('Current & Potential'!C1,'LookupsC&P'!$A:$A,0))","v":1},{"$f":"INDEX('LookupsC&P'!$C:$C,MATCH('Current & Potential'!D1,'LookupsC&P'!$A:$A,0))","v":1},{"$f":"INDEX('LookupsC&P'!$C:$C,MATCH('Current & Potential'!E1,'LookupsC&P'!$A:$A,0))","v":1},{"$f":"INDEX('LookupsC&P'!$C:$C,MATCH('Current & Potential'!F1,'LookupsC&P'!$A:$A,0))","v":1},{"$f":"INDEX('LookupsC&P'!$C:$C,MATCH('Current & Potential'!G1,'LookupsC&P'!$A:$A,0))","v":1},{"$f":"INDEX('LookupsC&P'!$C:$C,MATCH('Current & Potential'!H1,'LookupsC&P'!$A:$A,0))","v":1},{"$f":"INDEX('LookupsC&P'!$C:$C,MATCH('Current & Potential'!I1,'LookupsC&P'!$A:$A,0))","v":1},{"$f":"INDEX('LookupsC&P'!$C:$C,MATCH('Current & Potential'!J1,'LookupsC&P'!$A:$A,0))","v":1},{"$f":"INDEX('LookupsC&P'!$C:$C,MATCH('Current & Potential'!K1,'LookupsC&P'!$A:$A,0))","v":1},{"$f":"INDEX('LookupsC&P'!$C:$C,MATCH('Current & Potential'!L1,'LookupsC&P'!$A:$A,0))","v":1},{"$f":"INDEX('LookupsC&P'!$C:$C,MATCH('Current & Potential'!M1,'LookupsC&P'!$A:$A,0))","v":1},{"$f":"INDEX('LookupsC&P'!$C:$C,MATCH('Current & Potential'!N1,'LookupsC&P'!$A:$A,0))","v":1},{"$f":"INDEX('LookupsC&P'!$C:$C,MATCH('Current & Potential'!O1,'LookupsC&P'!$A:$A,0))","v":1},{"$f":"INDEX('LookupsC&P'!$C:$C,MATCH('Current & Potential'!P1,'LookupsC&P'!$A:$A,0))","v":1},{"$f":"INDEX('LookupsC&P'!$C:$C,MATCH('Current & Potential'!Q1,'LookupsC&P'!$A:$A,0))","v":1},{"$f":"INDEX('LookupsC&P'!$C:$C,MATCH('Current & Potential'!R1,'LookupsC&P'!$A:$A,0))","v":1},{"$f":"INDEX('LookupsC&P'!$C:$C,MATCH('Current & Potential'!S1,'LookupsC&P'!$A:$A,0))","v":1},{"$f":"INDEX('LookupsC&P'!$C:$C,MATCH('Current & Potential'!T1,'LookupsC&P'!$A:$A,0))","v":1}]
[]
[null,"Date","Cooking","Eating and Drinking","Meal Planning","Washing and Keeping Clean","Toilet","Dressing","Getting Around My Home","Safe and Clean Home","Personal Relationships","Day Activities","Work/ Volunteering","Getting into the Community","Transport","Personal Safety","Managing Money","Managing Correspondences","Physical Wellbeing","Psychological Wellbeing","Night Support","Support Setting"]
[null,"Last Review",1,1,1,1,1,1,1,1,1,1,1,1,1,1,1,1,1,1,1,1]

{"sheet":"Charts","index":9,"n_rows":28,"n_cols":1,"rows_kept":28,"cut":false,"hidden":true,"merged":[[1,0,1,27],[27,0,27,27]]}
[]
["Progress"]
[]
[]
[]
[]
[]
[]
[]
[]
[]
[]
[]
[]
[]
[]
[]
[]
[]
[]
[]
[]
[]
[]
[]
[]
[]
["Potential"]